fUSD/lending_fUSD_20240121
["ID","MTS","AMOUNT","RATE_DAILY","PERIOD"]
[312382590,1705848642106,-1000.0,0.00032876,2]
[312382592,1705848642120,-663.36,0.00032877,15]
[312382595,1705848642134,-3887.0,0.00032877,10]
[312382598,1705848642150,-355.00015144,0.000329,2]
[312382601,1705848642166,-238.21316974,0.000329,2]
[312382603,1705848642181,-450.0,0.00032996,3]
[312382606,1705848642195,-100000.0,0.00033,3]
[312382608,1705848642210,-155.0,0.00033,4]
[312382609,1705848642225,-899.99999909,0.00033,34]
[312382610,1705848642239,-50000.0,0.00033,4]
[312382611,1705848642254,-500.0,0.0003315,15]
[312382612,1705848642268,-500.0,0.0003315,16]
[312382613,1705848642283,-500.0,0.0003315,17]
[312382617,1705848642297,-511.22684834,0.0003315,18]
[312382621,1705848642311,-151.81725598,0.0003315,7]
[312382625,1705848642325,-500.0,0.000332,3]
[312382627,1705848642340,-151.81725598,0.00033342,7]
[312382632,1705848642354,-152.04,0.00033366,2]
[312382638,1705848642369,-156.51906618,0.0003341,7]
[312382643,1705848642384,-462.98138488,0.00033518,7]
[312382651,1705848642399,-151.81725598,0.00033532,7]
[312382656,1705848642416,-151.81725598,0.00033553,7]
[312382661,1705848642433,-353.71,0.00033558,2]
[312382666,1705848642448,-191.29531171,0.00033619,7]
[312382669,1705848642463,-6204.54783651,0.00033629,5]
[312382672,1705848642478,-462.98138488,0.00033884,7]
[312382674,1705848642493,-26594.83609097,0.00033908,8]
[312382677,1705848642507,-11441.49950217,0.00033908,8]
[312382679,1705848642522,-4205.21501077,0.00033908,8]
[312382682,1705848642537,-18570.58875473,0.00033908,8]
[312382685,1705848642552,-17005.76121533,0.00033908,8]
[312382688,1705848642568,-450.0,0.00033988,3]
[312382690,1705848642582,-100000.0,0.00034,4]
[312382693,1705848642596,-500.0,0.00034,2]
[312382695,1705848642610,-300.49392488,0.00034,4]
[312382698,1705848642625,-1000.0,0.00034,4]
[312382701,1705848642641,-1072.341389,0.00034,15]
[312382703,1705848642655,-500.0,0.00034,6]
[312382705,1705848642665,-10000.0,0.00034,7]
[312382707,1705848642675,-516.0,0.00034,4]
[312382709,1705848642684,-1550.0,0.00034,3]
[312382711,1705848642695,-2500.0,0.00034,20]
[312382713,1705848642705,-462.98138488,0.00034034,7]
[312382716,1705848642715,-5000.0,0.00034115,4]
[312382718,1705848642725,-191.29531171,0.00034145,7]
[312382720,1705848642736,-443.1626161,0.00034193,6]
[312382743,1705848643042,-1000.0,0.000342,2]
[312382744,1705848643073,-500.0,0.000342,3]
[312382745,1705848643083,-1000.0,0.00034246,2]
[312382746,1705848643093,-153.05948949,0.00034438,7]
[312382747,1705848643101,-152.04,0.00034442,2]
[312382748,1705848643111,-191.29531171,0.00034461,7]
[312382749,1705848643120,-433.9656394,0.00034476,2]
[312382750,1705848643130,-3397.90075636,0.000345,2]
[312382751,1705848643139,-1000.0,0.000345,5]
[312382752,1705848643148,-5000.0,0.000345,15]
[312382753,1705848643157,-1500.0,0.000345,20]
[312382754,1705848643168,-462.98138488,0.00034632,7]
[312382755,1705848643178,-462.98138488,0.00034739,7]
[312382756,1705848643187,-152.21078169,0.00034754,7]
[312382757,1705848643196,-10003.35924277,0.000348,4]
[312382758,1705848643204,-153.05948949,0.00034874,7]
[312382759,1705848643214,-1429.53,0.0003489,10]
[312382760,1705848643223,-2089.71,0.0003489,10]
[312382761,1705848643232,-2590.24931817,0.000349,4]
[312382762,1705848643241,-512.27818094,0.000349,2]
[312382763,1705848643250,-512.27818094,0.000349,2]
[312382764,1705848643259,-512.27818094,0.000349,2]
[312382765,1705848643268,-512.27818094,0.000349,2]
[312382766,1705848643277,-512.27818094,0.000349,2]
[312382767,1705848643286,-512.27818094,0.000349,2]
[312382768,1705848643295,-512.27818094,0.000349,2]
[312382769,1705848643305,-512.27818094,0.000349,2]
[312382770,1705848643314,-6204.54783651,0.00034909,7]
[312382771,1705848643324,-3101.03122827,0.0003498,14]
[312382772,1705848643333,-798.84919118,0.0003498,3]
[312382773,1705848643342,-100000.0,0.00035,5]
[312382774,1705848643351,-4586.32053167,0.00035,7]
[312382775,1705848643360,-1397.90925546,0.00035,2]
[312382776,1705848643371,-155.0,0.00035,2]
[312382777,1705848643380,-44827.1208483,0.00035,7]
[312382778,1705848643389,-343.53052878,0.00035,7]
[312382779,1705848643399,-2105.58,0.00035,4]
[312382780,1705848643408,-4719.54258201,0.00035,2]
[312382781,1705848643416,-1500.0,0.00035,20]
[312382782,1705848643426,-500.0,0.00035,4]
[312382783,1705848643434,-155.0,0.00035001,5]
[312382784,1705848643443,-450.0,0.0003502,3]
[312382785,1705848643452,-462.98138488,0.00035063,7]
[312382786,1705848643462,-533.6845424,0.0003519,2]
[312382787,1705848643471,-500.0,0.000352,3]
[312382788,1705848643480,-151.81725598,0.00035219,7]
[312382789,1705848643488,-205.0,0.00035245,22]
[312382790,1705848643498,-1500.0,0.00035278,2]
[312382791,1705848643508,-191.29531171,0.00035288,7]
[312382792,1705848643517,-1000.0,0.000353,7]
[312382793,1705848643528,-500.0,0.000353,7]
[312382794,1705848643538,-702.25605653,0.00035308,7]
[312382795,1705848643547,-225.0,0.00035382,2]
[312382796,1705848643556,-16232.78163491,0.00035397,15]
[312382797,1705848643565,-151.39793635,0.00035404,2]
[312382798,1705848643574,-1500.0,0.0003544,2]
[312382799,1705848643583,-1315.83,0.00035455,2]
[312382800,1705848643592,-500.0,0.00035475,2]
[312382801,1705848643601,-150.0,0.00035482,2]
[312382802,1705848643611,-3210.45896669,0.000355,10]
[312382803,1705848643620,-1000.0,0.000355,6]
[312382804,1705848643629,-2000.0,0.000355,4]
[312382805,1705848643638,-2000.0,0.000355,12]
[312382806,1705848643647,-1500.0,0.000355,20]
[312382807,1705848643656,-150.0,0.00035509,2]
[312382808,1705848643665,-152.04,0.00035519,2]
[312382809,1705848643674,-1113.81362628,0.00035529,3]
[312382810,1705848643683,-1053.6996834,0.00035529,3]
[312382811,1705848643693,-150.0,0.00035541,2]
[312382812,1705848643702,-1500.0,0.00035549,2]
[312382813,1705848643711,-1500.0,0.00035573,2]
[312382814,1705848643720,-462.98138488,0.00035583,7]
[312382815,1705848643730,-150.0,0.00035597,2]
[312382816,1705848643743,-153.05948949,0.00035614,7]
[312382817,1705848643752,-500.0,0.00035616,60]
[312382818,1705848643761,-500.0,0.00035616,61]
[312382819,1705848643771,-500.0,0.00035616,62]
[312382820,1705848643780,-500.0,0.00035616,63]
[312382821,1705848643789,-500.0,0.00035616,64]
[312382822,1705848643799,-500.0,0.00035616,65]
[312382823,1705848643809,-500.0,0.00035616,66]
[312382824,1705848643818,-500.0,0.00035616,67]
[312382825,1705848643828,-500.0,0.00035616,68]
[312382826,1705848643838,-500.0,0.00035616,69]
[312382827,1705848643847,-500.0,0.00035616,70]
[312382828,1705848643857,-500.0,0.00035616,71]
[312382829,1705848643867,-500.0,0.00035616,72]
[312382830,1705848643877,-500.0,0.00035616,73]
[312382831,1705848643886,-500.0,0.00035616,74]
[312382832,1705848643895,-500.0,0.00035616,75]
[312382833,1705848643905,-500.0,0.00035616,76]
[312382834,1705848643914,-500.0,0.00035616,77]
[312382835,1705848643923,-500.0,0.00035616,78]
[312382836,1705848643933,-500.0,0.00035616,79]
[312382837,1705848643942,-500.0,0.00035616,79]
[312382838,1705848643951,-255.35414811,0.00035616,79]
[312382839,1705848643965,-150.0,0.00035616,2]
[312382840,1705848644005,-300.0,0.00035616,7]
[312382841,1705848644015,-458.25048283,0.00035616,12]
[312382842,1705848644024,-1000.0,0.00035616,2]
[312382843,1705848644033,-294.0,0.00035616,7]
[312382844,1705848644042,-208.0,0.00035616,7]
[312382845,1705848644051,-284.0,0.00035616,7]
[312382846,1705848644061,-358.91593041,0.00035638,2]
[312382847,1705848644070,-150.0,0.00035639,2]
[312382848,1705848644079,-150.0,0.00035641,2]
[312382849,1705848644088,-150.0,0.00035657,2]
[312382850,1705848644097,-150.0,0.00035663,2]
[312382851,1705848644106,-150.0,0.00035663,2]
[312382852,1705848644115,-150.0,0.00035664,2]
[312382853,1705848644124,-150.0,0.00035666,2]
[312382854,1705848644133,-150.0,0.00035672,2]
[312382855,1705848644142,-150.0,0.00035675,2]
[312382856,1705848644151,-150.0,0.00035683,2]
[312382857,1705848644160,-152.99,0.000357,2]
[312382858,1705848644169,-4739.8,0.000357,7]
[312382859,1705848644178,-16472.17,0.000357,7]
[312382860,1705848644187,-6309.62,0.000357,7]
[312382861,1705848644197,-304.1,0.000357,3]
[312382862,1705848644207,-304.1,0.000357,3]
[312382863,1705848644216,-304.1,0.000357,3]
[312382864,1705848644225,-304.1,0.000357,3]
[312382865,1705848644234,-304.1,0.000357,3]
[312382866,1705848644243,-304.1,0.000357,3]
[312382867,1705848644253,-304.1,0.000357,3]
[312382868,1705848644266,-304.1,0.000357,3]
[312382869,1705848644275,-304.1,0.000357,3]
[312382870,1705848644285,-304.1,0.000357,3]
[312382871,1705848644294,-304.1,0.000357,3]
[312382872,1705848644303,-304.1,0.000357,3]
[312382873,1705848644313,-304.1,0.000357,3]
[312382874,1705848644322,-304.1,0.000357,3]
[312382875,1705848644332,-304.1,0.000357,3]
[312382876,1705848644341,-304.1,0.000357,3]
[312382877,1705848644350,-304.1,0.000357,3]
[312382878,1705848644359,-304.1,0.000357,3]
[312382879,1705848644369,-304.1,0.000357,3]
[312382880,1705848644378,-304.1,0.000357,3]
[312382881,1705848644387,-150.0,0.00035708,2]
[312382882,1705848644396,-150.0,0.00035723,2]
[312382883,1705848644406,-150.0,0.00035738,2]
[312382884,1705848644415,-150.0,0.00035747,2]
[312382885,1705848644424,-150.0,0.00035751,2]
[312382886,1705848644434,-150.0,0.00035757,2]
[312382887,1705848644443,-1000.0,0.00035764,10]
[312382888,1705848644453,-1000.0,0.00035764,10]
[312382889,1705848644463,-1000.0,0.00035764,10]
[312382890,1705848644472,-183.17455859,0.00035764,6]
[312382891,1705848644481,-307.51224311,0.00035764,6]
[312382892,1705848644490,-279.08688274,0.00035764,6]
[312382893,1705848644499,-1000.0,0.00035764,10]
[312382894,1705848644508,-1000.0,0.00035764,10]
[312382895,1705848644518,-1912.7860097,0.00035764,6]
[312382896,1705848644527,-821.77874043,0.00035764,6]
[312382897,1705848644537,-179.27387539,0.00035764,5]
[312382898,1705848644545,-15666.45840553,0.00035764,6]
[312382899,1705848644555,-1072.99749749,0.00035764,6]
[312382900,1705848644564,-264.77591651,0.00035764,5]
[312382901,1705848644574,-881.88568334,0.00035764,6]
[312382902,1705848644583,-1000.0,0.00035764,10]
[312382903,1705848644593,-209.42974025,0.00035764,5]
[312382904,1705848644602,-1000.0,0.00035764,10]
[312382905,1705848644611,-216.28323001,0.00035764,5]
[312382906,1705848644621,-10066.50998898,0.00035764,6]
[312382907,1705848644630,-1000.0,0.00035764,10]
[312382908,1705848644639,-164.85710273,0.00035764,5]
[312382909,1705848644649,-425.89839877,0.00035764,5]
[312382910,1705848644658,-9076.08056637,0.00035764,6]
[312382911,1705848644667,-1000.0,0.00035764,10]
[312382912,1705848644676,-1014.13504058,0.00035764,6]
[312382913,1705848644685,-1000.0,0.00035764,10]
[312382914,1705848644695,-150.0,0.00035774,2]
[312382915,1705848644704,-150.0,0.00035774,2]
[312382916,1705848644713,-150.0,0.00035776,2]
[312382917,1705848644723,-1500.0,0.00035785,2]
[312382918,1705848644734,-150.0,0.00035785,2]
[312382919,1705848644745,-150.0,0.00035788,2]
[312382920,1705848644754,-150.0,0.00035793,2]
[312382921,1705848644763,-150.0,0.00035793,2]
[312382922,1705848644777,-150.0,0.00035796,2]
[312382923,1705848644787,-150.0,0.00035803,2]
[312382924,1705848644797,-150.0,0.00035811,2]
[312382925,1705848644807,-353.71,0.00035822,2]
[312382926,1705848644818,-150.0,0.00035826,2]
[312382927,1705848644829,-150.0,0.0003583,2]
[312382928,1705848644838,-150.0,0.00035839,2]
[312382929,1705848644847,-150.0,0.00035851,2]
[312382930,1705848644857,-150.0,0.00035853,2]
[312382931,1705848644866,-150.0,0.00035856,2]
[312382932,1705848644875,-150.0,0.00035869,2]
[312382933,1705848644885,-150.0,0.00035878,2]
[312382934,1705848644894,-150.0,0.0003588,2]
[312382935,1705848644904,-150.0,0.00035882,2]
[312382936,1705848644913,-150.0,0.00035886,2]
[312382937,1705848644923,-150.0,0.00035889,2]
[312382938,1705848644933,-150.0,0.00035893,2]
[312382939,1705848644944,-150.0,0.00035895,2]
[312382940,1705848644954,-533.6845424,0.000359,2]
[312382941,1705848644963,-562.91,0.000359,2]
[312382942,1705848644973,-150.0,0.00035903,2]
[312382943,1705848644982,-150.0,0.00035916,2]
[312382944,1705848644992,-150.0,0.0003592,2]
[312382945,1705848645001,-150.0,0.00035929,2]
[312382946,1705848645012,-33930.00000942,0.0003593,2]
[312382947,1705848645022,-150.0,0.00035937,7]
[312382948,1705848645031,-150.0,0.00035937,7]
[312382949,1705848645041,-150.0,0.00035937,7]
[312382950,1705848645051,-150.0,0.0003595,2]
[312382951,1705848645062,-150.0,0.00035954,2]
[312382952,1705848645072,-150.0,0.00035957,2]
[312382953,1705848645082,-1500.0,0.00035959,2]
[312382954,1705848645092,-150.0,0.0003596,2]
[312382955,1705848645105,-150.0,0.00035969,2]
[312382956,1705848645115,-200.0,0.00035987,18]
[312382957,1705848645125,-150.0,0.00035988,2]
[312382958,1705848645135,-150.0,0.00035988,2]
[312382959,1705848645145,-150.0,0.00035998,2]
[312382960,1705848645155,-100000.0,0.00036,6]
[312382961,1705848645164,-151.0,0.00036,7]
[312382962,1705848645174,-500.0,0.00036,7]
[312382963,1705848645184,-500.0,0.00036,7]
[312382964,1705848645194,-174.33183732,0.00036,2]
[312382965,1705848645203,-427330.29409263,0.00036,7]
[312382967,1705848645214,-10000.0,0.00036,7]
[312382968,1705848645224,-340.08491371,0.00036,4]
[312382969,1705848645235,-36195.9,0.00036,3]
[312382972,1705848645245,-2000.0,0.00036,4]
[312382975,1705848645254,-275.447162,0.00036,7]
[312382977,1705848645264,-151.0,0.00036,7]
[312382978,1705848645274,-151.0,0.00036,7]
[312382979,1705848645283,-199.815239,0.00036,7]
[312382980,1705848645293,-199.815239,0.00036,7]
[312382982,1705848645303,-161.635064,0.00036,7]
[312382983,1705848645313,-161.635064,0.00036,7]
[312382984,1705848645322,-153.40198,0.00036,7]
[312382985,1705848645332,-153.40198,0.00036,7]
[312382986,1705848645342,-151.0,0.00036,7]
[312382987,1705848645351,-151.0,0.00036,7]
[312382988,1705848645361,-151.0,0.00036,7]
[312382989,1705848645371,-160.968801,0.00036,7]
[312382990,1705848645380,-155.555419,0.00036,7]
[312382991,1705848645390,-245.0388,0.00036,7]
[312382992,1705848645400,-1600.0,0.00036,3]
[312382993,1705848645409,-151.0,0.00036,7]
[312382994,1705848645420,-151.0,0.00036,7]
[312382995,1705848645430,-151.0,0.00036,7]
[312382997,1705848645439,-151.0,0.00036,7]
[312382999,1705848645449,-187.971555,0.00036,7]
[312383001,1705848645458,-187.971555,0.00036,7]
[312383003,1705848645468,-757.54413,0.00036,7]
[312383004,1705848645477,-757.54413,0.00036,7]
[312383005,1705848645487,-151.0,0.00036,7]
[312383006,1705848645497,-151.0,0.00036,7]
[312383007,1705848645506,-616.316148,0.00036,7]
[312383008,1705848645517,-616.316148,0.00036,7]
[312383009,1705848645527,-151.0,0.00036,7]
[312383010,1705848645537,-1500.0,0.00036,20]
[312383011,1705848645547,-151.0,0.00036,7]
[312383012,1705848645557,-151.0,0.00036,7]
[312383013,1705848645566,-151.0,0.00036,7]
[312383014,1705848645578,-3291.684164,0.00036,7]
[312383015,1705848645587,-3291.684164,0.00036,7]
[312383016,1705848645597,-428.067621,0.00036,7]
[312383017,1705848645607,-428.067621,0.00036,7]
[312383018,1705848645616,-394.302835,0.00036,7]
[312383019,1705848645626,-394.302835,0.00036,7]
[312383020,1705848645635,-907.808966,0.00036,7]
[312383021,1705848645645,-907.808966,0.00036,7]
[312383022,1705848645655,-150.0,0.00036007,2]
[312383023,1705848645665,-150.0,0.00036011,2]
[312383024,1705848645675,-450.0,0.00036012,3]
[312383025,1705848645685,-150.0,0.0003602,2]
[312383026,1705848645694,-150.0,0.00036041,2]
[312383027,1705848645705,-462.98138488,0.00036041,7]
[312383028,1705848645715,-150.0,0.00036044,2]
[312383029,1705848645724,-150.0,0.00036045,2]
[312383030,1705848645736,-150.0,0.00036051,2]
[312383031,1705848645747,-152.80025905,0.00036052,2]
[312383032,1705848645757,-150.0,0.00036056,2]
[312383033,1705848645778,-150.0,0.00036056,2]
[312383034,1705848645789,-150.0,0.00036057,2]
[312383035,1705848645799,-150.0,0.00036065,2]
[312383036,1705848645809,-150.0,0.00036066,2]
[312383037,1705848645821,-150.0,0.00036066,2]
[312383038,1705848645831,-150.0,0.0003607,2]
[312383039,1705848645842,-150.0,0.0003607,2]
[312383040,1705848645852,-150.0,0.00036084,2]
[312383041,1705848645862,-150.0,0.00036087,2]
[312383042,1705848645872,-150.0,0.00036089,2]
[312383043,1705848645882,-150.0,0.00036093,2]
[312383044,1705848645893,-150.0,0.00036106,2]
[312383045,1705848645903,-150.0,0.00036113,2]
[312383046,1705848645913,-150.0,0.00036119,2]
[312383047,1705848645923,-150.0,0.00036124,2]
[312383048,1705848645933,-150.0,0.00036128,2]
[312383049,1705848645944,-150.0,0.00036129,2]
[312383050,1705848645955,-150.0,0.00036139,2]
[312383051,1705848645966,-150.0,0.00036146,2]
[312383052,1705848645976,-1500.0,0.00036148,2]
[312383053,1705848645987,-500.0,0.00036164,7]
[312383054,1705848645997,-150.0,0.00036181,2]
[312383055,1705848646007,-150.0,0.00036185,2]
[312383057,1705848646017,-150.0,0.00036187,2]
[312383059,1705848646028,-462.98138488,0.00036188,7]
[312383061,1705848646038,-6204.54783651,0.0003619,9]
[312383063,1705848646048,-150.0,0.00036196,2]
[312383065,1705848646057,-150.0,0.00036197,2]
[312383067,1705848646067,-150.0,0.00036198,2]
[312383069,1705848646077,-150.0,0.00036199,2]
[312383071,1705848646087,-150.0,0.000362,25]
[312383073,1705848646096,-2698.430796,0.000362,15]
[312383075,1705848646106,-500.0,0.000362,3]
[312383078,1705848646116,-443.1626161,0.00036208,7]
[312383080,1705848646126,-150.0,0.00036211,2]
[312383082,1705848646135,-150.0,0.00036213,2]
[312383084,1705848646145,-161.635064,0.00036214,7]
[312383086,1705848646155,-161.635064,0.00036214,7]
[312383088,1705848646165,-161.635064,0.00036214,7]
[312383090,1705848646174,-161.635064,0.00036214,7]
[312383092,1705848646184,-153.40198,0.00036214,7]
[312383094,1705848646193,-153.40198,0.00036214,7]
[312383122,1705848646437,-153.40198,0.00036214,7]
[312383126,1705848646458,-153.40198,0.00036214,7]
[312383128,1705848646467,-151.0,0.00036214,7]
[312383130,1705848646476,-151.0,0.00036214,7]
[312383132,1705848646486,-151.0,0.00036214,7]
[312383134,1705848646495,-151.0,0.00036214,7]
[312383136,1705848646504,-151.0,0.00036214,7]
[312383138,1705848646517,-151.0,0.00036214,7]
[312383140,1705848646526,-512.27818094,0.00036222,2]
[312383142,1705848646536,-150.0,0.00036222,2]
[312383144,1705848646546,-150.0,0.00036224,2]
[312383146,1705848646556,-150.0,0.00036226,2]
[312383149,1705848646565,-150.0,0.00036231,2]
[312383151,1705848646576,-150.0,0.00036233,2]
[312383153,1705848646587,-151.81725598,0.00036234,7]
[312383155,1705848646596,-150.0,0.00036236,2]
[312383157,1705848646606,-150.0,0.00036242,2]
[312383159,1705848646616,-150.0,0.00036257,7]
[312383161,1705848646626,-150.0,0.00036257,7]
[312383163,1705848646636,-150.0,0.00036257,7]
[312383165,1705848646645,-507.08723329,0.00036261,4]
[312383167,1705848646655,-150.0,0.00036261,2]
[312383169,1705848646665,-150.0,0.00036273,2]
[312383171,1705848646675,-462.98138488,0.00036285,7]
[312383173,1705848646685,-151.0,0.0003629,7]
[312383175,1705848646694,-151.0,0.0003629,7]
[312383177,1705848646704,-151.0,0.0003629,7]
[312383179,1705848646713,-151.0,0.0003629,7]
[312383181,1705848646724,-500.0,0.0003629,2]
[312383184,1705848646735,-500.0,0.0003629,2]
[312383186,1705848646745,-500.0,0.0003629,2]
[312383188,1705848646755,-500.0,0.0003629,2]
[312383190,1705848646765,-200.0,0.0003629,2]
[312383192,1705848646775,-500.0,0.0003629,2]
[312383194,1705848646785,-3420.11881211,0.0003629,5]
[312383196,1705848646794,-178109.0,0.0003629,3]
[312383198,1705848646804,-151.0,0.000363,7]
[312383200,1705848646815,-151.0,0.000363,7]
[312383202,1705848646826,-500.0,0.000363,7]
[312383204,1705848646837,-500.0,0.000363,7]
[312383206,1705848646846,-500.0,0.000363,7]
[312383208,1705848646856,-500.0,0.000363,7]
[312383209,1705848646866,-151.0,0.000363,7]
[312383210,1705848646876,-154.716496,0.000363,7]
[312383211,1705848646887,-199.815239,0.000363,7]
[312383213,1705848646897,-199.815239,0.000363,7]
[312383214,1705848646907,-199.815239,0.000363,7]
[312383215,1705848646917,-199.815239,0.000363,7]
[312383216,1705848646927,-152.21078169,0.00036306,7]
[312383217,1705848646938,-2082060.33616847,0.00036308,7]
[312383218,1705848647571,-19050.22608354,0.00036308,7]
[312383219,1705848647583,-1818.65433214,0.00036308,7]
[312383220,1705848648565,-150.0,0.00025787,2]
[312383221,1705848648574,-225.70184078,0.00029554,16]
[312383222,1705848648657,-20042.40199201,0.00033908,8]
[312383223,1705848648667,-1741.43,0.0003399,10]
[312383224,1705848648676,-169622.53435884,0.00036308,7]
[312383225,1705848648687,-90553.58174302,0.00036308,7]
[312383226,1705848648727,-11768.32918391,0.00036308,7]
[312383227,1705848649219,-308.16806821,0.00036308,7]
[312383228,1705848649231,-1201.23505853,0.00036308,7]
[312383229,1705848649251,-2977.52841997,0.00036308,7]
[312383230,1705848649262,-618.99324043,0.00036308,7]
[312383231,1705848649295,-2360.98849158,0.00036308,7]
[312383232,1705848649873,-583.0,0.00023233,2]
[312383233,1705848649882,-6561.8111,0.00036308,7]
[312383234,1705848649895,-5528.19565487,0.00036308,7]
[312383235,1705848649906,-4845.87326741,0.00036308,7]
[312383236,1705848649918,-3233.73330878,0.00036308,7]
[312383237,1705848649934,-504.57445119,0.00036308,7]
[312383238,1705848649946,-950.14590883,0.00036308,7]
[312383239,1705848649963,-463.51367634,0.00036308,7]
[312383240,1705848649983,-345.85,0.00036308,7]
[312383241,1705848649996,-2534.80452986,0.00036308,7]
[312383242,1705848650013,-44753.66692431,0.00036308,7]
[312383243,1705848650026,-806.70724481,0.00036308,7]
[312383244,1705848650039,-446.14741197,0.00036308,7]
[312383246,1705848651955,-159.04770254,0.00023232,2]
[312383247,1705848651965,-164.2384182,0.00023232,2]
[312383248,1705848651975,-732.63977227,0.00023287,2]
[312383249,1705848651986,-316.21951296,0.00031999,4]
[312383250,1705848652003,-283.78324931,0.00031999,4]
[312383251,1705848652012,-70.59391751,0.00031999,4]
[312383252,1705848652066,-429.40608249,0.00031999,4]
[312383253,1705848652075,-500.0,0.00031999,4]
[312383254,1705848652087,-500.0,0.00031999,4]
[312383255,1705848652096,-500.0,0.00031999,4]
[312383256,1705848652106,-500.0,0.00031999,4]
[312383257,1705848652115,-500.0,0.00031999,4]
[312383258,1705848652126,-500.0,0.00031999,4]
[312383259,1705848652135,-510.99081661,0.00031999,4]
[312383260,1705848652330,-500.0,0.00031999,4]
[312383261,1705848652356,-500.0,0.00031999,4]
[312383262,1705848652366,-500.0,0.00031999,4]
[312383263,1705848652375,-500.0,0.00031999,4]
[312383264,1705848652385,-500.0,0.00031999,4]
[312383265,1705848652394,-500.0,0.00031999,4]
[312383266,1705848652403,-500.0,0.00031999,4]
[312383267,1705848652412,-604.91178207,0.00031999,4]
[312383268,1705848652421,-500.0,0.00031999,4]
[312383269,1705848652430,-179.71434532,0.00031999,4]
[312383270,1705848652439,-500.0,0.00031999,4]
[312383271,1705848652448,-500.0,0.00031999,4]
[312383272,1705848652457,-500.0,0.00031999,4]
[312383273,1705848652467,-500.0,0.00031999,4]
[312383274,1705848652477,-225.70184078,0.00032881,21]
[312383275,1705848652487,-1000.0,0.00035764,10]
[312383276,1705848652497,-360.00165736,0.00036,7]
[312383277,1705848652507,-500.0,0.00036,7]
[312383278,1705848652517,-633.24311246,0.00036,7]
[312383279,1705848652527,-522.28426094,0.00036,7]
[312383280,1705848652537,-500.0,0.00036,7]
[312383281,1705848652545,-500.0,0.00036,7]
[312383282,1705848652554,-500.0,0.00036,7]
[312383283,1705848652563,-500.0,0.00036,7]
[312383284,1705848652572,-634.78575899,0.00036,7]
[312383285,1705848652583,-500.0,0.00036,7]
[312383286,1705848652592,-500.0,0.00036,7]
[312383287,1705848652600,-500.0,0.00036,7]
[312383288,1705848652610,-500.0,0.00036,7]
[312383289,1705848652619,-500.0,0.00036,7]
[312383290,1705848652629,-203.68383655,0.00036,7]
[312383291,1705848652640,-500.0,0.00036,7]
[312383292,1705848652649,-500.0,0.00036,7]
[312383293,1705848652660,-150.0,0.00036011,2]
[312383294,1705848652669,-150.0,0.00036012,2]
[312383295,1705848652679,-150.0,0.00036013,2]
[312383296,1705848652688,-150.0,0.00036027,2]
[312383297,1705848652699,-150.0,0.00036033,2]
[312383298,1705848652708,-150.0,0.00036037,2]
[312383299,1705848652718,-150.0,0.00036038,2]
[312383300,1705848652727,-150.0,0.00036038,2]
[312383301,1705848652736,-150.0,0.00036044,2]